Cogmind - Beta 12 @@@ ROGUE MODE // 2023.11.01 @ 23:20:19 Player: FrostySpirit Result: Destroyed by Y-54 Guardian with Flak Gun Performance ------------- Evolutions (4) 2000 Regions Visited (10) 2000 Robots Destroyed (29) 145 Value Destroyed (645) 645 Prototype IDs (4) 80 Alien Tech Used (0) 0 Bonus (1136) 1136 TOTAL SCORE: 6006 Bonus ------- High Alert Combat Kills 22 Follower Combat Kills 414 Entered Garrisons 200 Entered DSFs 500 Cogmind --------- Core Integrity 0/850 Matter 290/300 Energy 210/210 System Corruption 1% Temperature Cool (90) Movement Hovering (110) Ox1 Location -6/Factory Parts ------- > --- POWER (2) -------- Light Nuclear Core Light Angular Momentum Engine > --- PROPULSION (4) --- Gravmag Array > --- UTILITY (7) ------ Advanced Weight Redist. System Advanced Visual Processing Unit Improved Terrain Scan Processor Advanced Targeting Computer Advanced Targeting Computer Armor Integrity Analyzer Layered Light Armor Plating > --- WEAPON (2) ------- Phase Cannon Heavy Mace > --- INVENTORY (5) ---- Improved Cryofiber Web Advanced Heat Sink Authchip [R/Combat] Component Analysis Suite Recalibrator Peak State ------------ > --- POWER ------------ Light Deuterium Engine Light Deuterium Engine > --- PROPULSION ------- Improved Titanium Leg Improved Titanium Leg Improved Titanium Leg Airjet > --- UTILITY ---------- Small Storage Unit Improved Sensor Array Improved Signal Interpreter Advanced Targeting Computer Advanced Targeting Computer Improved Propulsion Shielding Hacking Suite > --- WEAPON ----------- Heavy Machine Gun Remote Datajack > --- INVENTORY -------- Advanced Weight Redist. System Improved Sensor Array Improved Terrain Scan Processor EM Disruption Field Authchip [R/Combat] Component Analysis Suite Recalibrator [Rating: 51] Favorites ----------- Power Light Deuterium Engine Engine Light Deuterium Engine Power Core Light Nuclear Core Propulsion Improved Titanium Leg Leg Improved Titanium Leg Hover Unit Hover Unit Flight Unit Improved VTOL Module Utility Advanced Targeting Computer Device Improved Sensor Array Storage Small Storage Unit Processor Advanced Targeting Computer Hackware Hacking Suite Protection Improved Propulsion Shielding Weapon Pulse Rifle Energy Gun Pulse Rifle Energy Cannon Heavy Ion Cannon Ballistic Gun Minigun Special Weapon Remote Datajack Impact Weapon Heavy Mace Special Melee Weapon Datajack Build | -11 -10 -10 -9 -8 -8 -7 -7 -6 -6 -6 ------- Run | Jun Mat Min Mat Mat Sto Fac DSF Fac Gar Fac Slots Evolved 8 | . . . 2 2 . 2 . 2 . . Power 1 | . . . . . . 1 . . . . Propulsion 2 | . . . 1 . . . . 1 . . Utility 5 | . . . 1 2 . 1 . 1 . . Weapon . | . . . . . . . . . . . Parts Attached 63 | 6 8 2 5 3 8 8 3 6 3 11 Power 10 | 1 1 . . . 2 . 2 1 1 2 Engine 6 | 1 1 . . . . . 2 1 . 1 Core 4 | . . . . . 2 . . . 1 1 Reactor . | . . . . . . . . . . . Propulsion 19 | 2 4 . 2 1 3 4 . 2 . 1 Treads . | . . . . . . . . . . . Leg 8 | 2 2 . . . . 3 . 1 . . Wheel . | . . . . . . . . . . . Hover 7 | . 2 . 2 1 . . . 1 . 1 Flight 4 | . . . . . 3 1 . . . . Utility 18 | 1 1 . 3 2 . 2 . 1 2 6 Device 6 | . . . 2 . . . . . 2 2 Storage 1 | 1 . . . . . . . . . . Processor 7 | . 1 . 1 1 . 1 . . . 3 Hackware 1 | . . . . 1 . . . . . . Protection 3 | . . . . . . 1 . 1 . 1 Artifact . | . . . . . . . . . . . Weapon 16 | 2 2 2 . . 3 2 1 2 . 2 Energy Gun 5 | 1 . 1 . . 1 1 1 . . . Energy Cannon 2 | . . . . . . . . 1 . 1 Ballistic Gun 5 | 1 2 1 . . . . . 1 . . Ballistic Cannon . | . . . . . . . . . . . Launcher . | . . . . . . . . . . . Special Weapon 1 | . . . . . . 1 . . . . Impact Weapon 1 | . . . . . . . . . . 1 Slashing Weapon . | . . . . . . . . . . . Piercing Weapon . | . . . . . . . . . . . Special Melee Weapon 2 | . . . . . 2 . . . . . Unidentified Prototypes 2 | . 1 . . . 1 . . . . . Parts Lost 15 | . . . . . . . 1 . 13 1 Power 3 | . . . . . . . . . 3 . Propulsion 4 | . . . . . . . . . 4 . Utility 5 | . . . . . . . . . 4 1 Weapon 3 | . . . . . . . 1 . 2 . Highest Loss Streak 10 | . . . . . . . 1 . 10 1 To Critical Strikes . | . . . . . . . . . . . Average Slot Usage (%) 88 | . 95 99 93 100 100 86 89 91 79 59 Engine 7 | . 14 14 11 9 6 . 4 12 5 . Core 2 | . . . . . 2 7 4 . 2 2 Leg 8 | . 20 . . . . 7 23 20 14 . Hover 9 | . 6 28 33 27 5 . . 3 3 4 Flight 4 | . . . . . 21 9 . . . . Device 7 | . . . 5 9 9 7 7 6 8 20 Storage 7 | . 14 14 11 9 9 7 7 6 4 . Processor 18 | . 12 14 11 18 18 23 23 20 19 22 Hackware 4 | . . . . 9 9 7 7 6 4 . Protection 1 | . . . . . . . . 6 3 1 Energy Gun 5 | . 14 14 11 9 . 6 2 . . . Energy Cannon 1 | . . . . . . . . . 4 4 Ballistic Gun 5 | . 12 13 11 9 9 . . . . . Special Weapon 2 | . . . . . . 4 7 6 4 . Special Melee Weapon 1 | . . . . . 8 2 . . . . Naked Turns . | . . . . . . . . . . . Heaviest Build 29 | 14 14 14 15 15 15 17 19 29 29 29 Greatest Support 60 | 20 26 12 18 20 20 60 60 60 60 20 Greatest Overweight (x) 3 | 1 3 1 . . 2 1 . . 1 1 Average Overweight (x) . | . . . . . . . . . . . Largest Inventory Capacity 8 | 8 8 8 8 8 8 8 8 8 8 5 Average Capacity 7 | 6 8 8 8 8 8 8 8 8 7 5 Most Carried 8 | 3 8 8 8 7 8 8 8 8 8 5 Average Carried 7 | 1 6 7 7 6 7 7 7 7 7 4 Final Capacity 8 | 8 8 8 8 8 8 8 8 8 5 5 Final Carried 8 | 3 8 8 8 7 8 8 8 8 5 5 Class Distribution -------------------- 69% | Mutant 17% | Commander-Sprinter 11% | Commander-Mutant Dominant Class ---------------- Mutant | -10/Materials Mutant | -10/Mines Mutant | -9/Materials Mutant | -8/Materials Commander-Sprinter | -8/Storage Commander-Mutant | -7/Factory Mutant | -7/DSF Mutant | -6/Factory Mutant | -6/Garrison Mutant | -6/Factory Resources | -11 -10 -10 -9 -8 -8 -7 -7 -6 -6 -6 ----------- Run | Jun Mat Min Mat Mat Sto Fac DSF Fac Gar Fac Matter Collected 923 | 180 228 20 98 . 166 . . . 143 88 Remotely . | . . . . . . . . . . . Salvage Created 875 | . 169 . 240 . 210 . . . 162 94 Parts 56 | . 14 . 21 . 10 . . . 8 3 Haulers Intercepted 1 | . . . . . 1 . . . . . Recyclers Shooed 1 | . 1 . . . . . . . . . Parts Field Recycled . | . . . . . . . . . . . Retrieved Matter . | . . . . . . . . . . . Parts Self-Destructed . | . . . . . . . . . . . Prevented . | . . . . . . . . . . . Kills | -11 -10 -10 -9 -8 -8 -7 -7 -6 -6 -6 ------- Run | Jun Mat Min Mat Mat Sto Fac DSF Fac Gar Fac Combat Hostiles Destroyed 21 | . 4 . 6 . 3 . . . 5 3 Guns 13 | . 4 . 6 . 3 . . . . . Cannons 8 | . . . . . . . . . 5 3 Classes Destroyed 9 | . 4 . 3 . 1 . . . . 1 Worker 1 | . . . 1 . . . . . . . Hauler 1 | . . . . . 1 . . . . . Recycler 1 | . 1 . . . . . . . . . Mechanic 1 | . . . . . . . . . . 1 Operator 1 | . 1 . . . . . . . . . Watcher 3 | . . . 3 . . . . . . . Swarmer 14 | . 3 . 4 . . . . . 4 3 Grunt 4 | . 1 . 1 . 1 . . . 1 . Sentry 3 | . . . 1 . 2 . . . . . Best Kill Streak 8 | . 2 . 8 . 3 . . . 4 2 Combat Bots Only 5 | . 2 . 5 . 3 . . . 4 2 Max Kills in Single Turn 2 | . 1 . 2 . 1 . . . 1 1 Gunslinging 1 | . . . 1 . . . . . . . Exploded . | . . . . . . . . . . . Melee . | . . . . . . . . . . . Uniques/NPCs Destroyed . | . . . . . . . . . . . Combat | -11 -10 -10 -9 -8 -8 -7 -7 -6 -6 -6 -------- Run | Jun Mat Min Mat Mat Sto Fac DSF Fac Gar Fac Damage Taken 2682 | . 78 . 89 . 109 . 64 . 1819 523 Core 925 | . 35 . 22 . 16 . . . 663 189 Absorbed by Shields 192 | . . . . . . . . . 192 . Redirected to Shielding 102 | . . . . . . . . . 102 . Core Remaining (%) 95 | 100 . 86 94 . 97 . 100 . . . Volleys Fired 92 | . 20 . 12 1 13 . . . 28 18 Largest 2 | . 2 . 2 1 2 . . . 1 1 Hottest 88 | . 70 . 88 25 88 . . . 65 85 Shots Fired 122 | . 36 . 24 1 15 . . . 28 18 Gun 76 | . 36 . 24 1 15 . . . . . Cannon 46 | . . . . . . . . . 28 18 Launcher . | . . . . . . . . . . . Special . | . . . . . . . . . . . Kinetic 46 | . 20 . 12 1 13 . . . . . Thermal 76 | . 16 . 12 . 2 . . . 28 18 Explosive . | . . . . . . . . . . . Electromagnetic . | . . . . . . . . . . . Robot Hit Streak 12 | . 12 . 11 2 3 . . . 12 7 Robot Miss Streak 3 | . 3 . 2 . 1 . . . 2 2 Penetration Max . | . . . . . . . . . . . Secondary Targets 4 | . 1 . 3 . . . . . . . Max Gunslinging Chain 1 | . 1 . 1 . . . . . . . Shots Hit Robots 94 | . 18 . 17 1 14 7 . . 23 14 Core Hits 40 | . 10 . 11 . 6 . . . 7 6 Critical Kills . | . . . . . . . . . . . Critical Parts Destroyed . | . . . . . . . . . . . Critical Strikes 2 | . 1 . 1 . . . . . . . Burn 2 | . 1 . 1 . . . . . . . Melee Attacks 14 | . . . . . 6 7 . . . 1 Impact 1 | . . . . . . . . . . 1 Slashing . | . . . . . . . . . . . Piercing . | . . . . . . . . . . . Sneak Attacks 13 | . . . . . 6 7 . . . . Combat Hostiles . | . . . . . . . . . . . Follow-up Attacks . | . . . . . . . . . . . Damage Inflicted 1854 | . 237 . 327 20 131 3 . . 671 465 Guns 715 | . 237 . 327 20 131 . . . . . Cannons 1053 | . . . . . . . . . 624 429 Explosions . | . . . . . . . . . . . Melee 29 | . . . . . . . . . . 29 Ramming 57 | . . . . . . 3 . . 47 7 Kinetic 433 | . 114 . 168 20 131 . . . . . Thermal 1335 | . 123 . 159 . . . . . 624 429 Explosive . | . . . . . . . . . . . Electromagnetic . | . . . . . . . . . . . Impact 29 | . . . . . . . . . . 29 Slashing . | . . . . . . . . . . . Piercing . | . . . . . . . . . . . Highest Corruption 2 | . 1 1 . . . 2 2 . 1 1 Average Corruption 1 | . 1 1 . . . 2 2 . 1 1 Corruption Purged . | . . . . . . . . . . . Corruption Blocked . | . . . . . . . . . . . Effects 8 | . 2 1 . . . 2 2 . . 1 Message Errors 4 | . . 1 . . . 1 1 . . 1 Matter Fused 1 | . 1 . . . . . . . . . Energy Discharges 2 | . . . . . . 1 1 . . . Weapon Failures 1 | . 1 . . . . . . . . . Overload Shots . | . . . . . . . . . . . Overflow Damage 27 | . . . . . . . . . 16 11 Projectiles 27 | . . . . . . . . . 16 11 Explosions . | . . . . . . . . . . . Melee . | . . . . . . . . . . . Knockbacks . | . . . . . . . . . . . Impact . | . . . . . . . . . . . Kinetic . | . . . . . . . . . . . Secondary . | . . . . . . . . . . . Self-Inflicted Damage 16 | . . . . . . . . . 13 3 Shots . | . . . . . . . . . . . Rammed 10 | . . . . . . . . . 8 2 Targets Rammed 17 | . . . . . . 1 . . 14 2 Kicked 7 | . . . . . . 1 . . 6 . Crushed . | . . . . . . . . . . . Highest Temperature 280 | . 280 . 192 2 84 . . . 178 227 Average Temperature 65 | . 44 . 73 2 23 . . . 61 101 Received Heat Transfer 728 | . 6 . 18 . 36 . . . 575 93 Effects 1 | . 1 . . . . . . . . . Interference 1 | . 1 . . . . . . . . . Siege Activations . | . . . . . . . . . . . Robots Corrupted . | . . . . . . . . . . . Combat Hostiles . | . . . . . . . . . . . Parts Fried . | . . . . . . . . . . . Impact Corruptions 1 | . . . . . . . . . 1 . Robots Melted . | . . . . . . . . . . . Combat Hostiles . | . . . . . . . . . . . Parts Melted 2 | . 1 . . . . . . . 1 . Heat Transferred 2220 | . 444 . 407 . . . . . 851 518 Parts Sabotaged . | . . . . . . . . . . . Parts Stolen . | . . . . . . . . . . . Parts Stripped . | . . . . . . . . . . . Power Chain Reactions . | . . . . . . . . . . . Missiles Intercepted . | . . . . . . . . . . . Alert | -11 -10 -10 -9 -8 -8 -7 -7 -6 -6 -6 ------- Run | Jun Mat Min Mat Mat Sto Fac DSF Fac Gar Fac Peak Influence 538 | . 164 63 243 102 538 254 199 126 233 200 Initial 235 | . . 63 24 102 42 235 177 104 88 116 Average 137 | . 49 63 108 102 170 245 167 110 161 142 Maximum Alert Level 2 | . . . 1 . 2 1 . . 1 1 Low Security (%) 77 | 100 100 100 69 100 72 . 100 100 95 92 Level 1 20 | . . . 30 . 10 100 . . 4 7 Level 2 2 | . . . . . 16 . . . . . Level 3 . | . . . . . . . . . . . Level 4 . | . . . . . . . . . . . Level 5 . | . . . . . . . . . . . High Security . | . . . . . . . . . . . Max Security . | . . . . . . . . . . . Squads Dispatched 9 | . 1 1 1 1 2 1 1 . . 1 Investigation 2 | . . 1 . . 1 . . . . . Extermination . | . . . . . . . . . . . Reinforcement 7 | . 1 . 1 1 1 1 1 . . 1 Assault . | . . . . . . . . . . . Garrison . | . . . . . . . . . . . Intercept . | . . . . . . . . . . . Searches Triggered . | . . . . . . . . . . . Construction Impeded 1 | . . . . . . . . . . 1 Haulers Reinforced . | . . . . . . . . . . . Active Scanning Responses . | . . . . . . . . . . . Cargo Convoy Interrupts . | . . . . . . . . . . . Stealth | -11 -10 -10 -9 -8 -8 -7 -7 -6 -6 -6 --------- Run | Jun Mat Min Mat Mat Sto Fac DSF Fac Gar Fac Distress Signals 3 | . . . . . 2 . . . . 1 Communications Jammed . | . . . . . . . . . . . Distress Signals . | . . . . . . . . . . . Times Spotted 62 | . 8 . 12 1 16 . 1 . 15 9 Peak Tracking Total 7 | . 4 . 4 1 7 . 2 . 6 4 Tactical Retreats 3 | . 1 . . . . . . . 2 . Traps | -11 -10 -10 -9 -8 -8 -7 -7 -6 -6 -6 ------- Run | Jun Mat Min Mat Mat Sto Fac DSF Fac Gar Fac Traps Triggered 3 | . . . . . . 2 . 1 . . Indirectly . | . . . . . . . . . . . Trap Hack Attempts . | . . . . . . . . . . . Triggered . | . . . . . . . . . . . Disarmed 4 | . . . . . 4 . . . . . Reprogrammed 4 | . . . . . 4 . . . . . Reused . | . . . . . . . . . . . Traps Extracted . | . . . . . . . . . . . Installed . | . . . . . . . . . . . Triggered . | . . . . . . . . . . . Machines | -11 -10 -10 -9 -8 -8 -7 -7 -6 -6 -6 ---------- Run | Jun Mat Min Mat Mat Sto Fac DSF Fac Gar Fac Machines Disabled . | . . . . . . . . . . . Max in Single Turn . | . . . . . . . . . . . Phase Generator 1 | . . . . . . . . . 1 . Machines Repaired . | . . . . . . . . . . . Machines Sabotaged . | . . . . . . . . . . . Overloaded Fab Kills . | . . . . . . . . . . . Hacking | -11 -10 -10 -9 -8 -8 -7 -7 -6 -6 -6 --------- Run | Jun Mat Min Mat Mat Sto Fac DSF Fac Gar Fac Machines Accessed 19 | . 4 1 5 . 4 1 . 2 1 1 Terminals 15 | . 4 . 4 . 4 1 . . 1 1 Fabricators . | . . . . . . . . . . . Repair Stations . | . . . . . . . . . . . Recycling Units . | . . . . . . . . . . . Scanalyzers 2 | . . . 1 . . . . 1 . . Garrison Access 1 | . . . . . . . . 1 . . Total Hacks 48 | . 12 1 12 . 11 3 . 5 3 1 Successful 18 | . 3 1 3 . 7 1 . 3 . . Failed 30 | . 9 . 9 . 4 2 . 2 3 1 Catastrophic 8 | . 3 . 3 . . . . . 1 1 Database Lockouts . | . . . . . . . . . . . Manual 16 | . 4 . 10 . 1 . . . . 1 Terminals 40 | . 12 . 10 . 11 3 . . 3 1 Fabricators . | . . . . . . . . . . . Repair Stations . | . . . . . . . . . . . Recycling Units . | . . . . . . . . . . . Scanalyzers 5 | . . . 2 . . . . 3 . . Garrison Access 2 | . . . . . . . . 2 . . Terminal Hacks 13 | . 3 1 1 . 7 1 . . . . Prototype ID Bank 1 | . 1 . . . . . . . . . Open Door 3 | . . 1 . . 2 . . . . . Open DSF 1 | . . . . . . 1 . . . . Scanalyzer Index 1 | . . . 1 . . . . . . . Garrison Index 1 | . . . . . 1 . . . . . Locate Traps 2 | . 1 . . . 1 . . . . . Disarm Traps 1 | . . . . . 1 . . . . . Reprogram Traps 1 | . . . . . 1 . . . . . Transport Status 1 | . 1 . . . . . . . . . Zone Layout 1 | . . . . . 1 . . . . . Fabricator Hacks . | . . . . . . . . . . . Repair Station Hacks . | . . . . . . . . . . . Recycling Unit Hacks . | . . . . . . . . . . . Scanalyzer 4 | . . . 2 . . . . 2 . . Insert Component 2 | . . . 1 . . . . 1 . . Analyze 2 | . . . 1 . . . . 1 . . Garrison Access Hacks 1 | . . . . . . . . 1 . . Unlock Access 1 | . . . . . . . . 1 . . Unauthorized Hacks . | . . . . . . . . . . . Terminals . | . . . . . . . . . . . Fabricators . | . . . . . . . . . . . Repair Stations . | . . . . . . . . . . . Recycling Units . | . . . . . . . . . . . Scanalyzers . | . . . . . . . . . . . Garrison Access . | . . . . . . . . . . . Data Cores Recovered . | . . . . . . . . . . . Used . | . . . . . . . . . . . Hacking Detections 16 | . 4 . 5 . 4 1 . . 1 1 Full Trace Events 3 | . 1 . . . 1 . . . 1 . Feedback Events 2 | . 1 . . . . . . . 1 . Corruption 2 | . 1 . . . . . . . 1 . Feedback Blocked . | . . . . . . . . . . . Robot Schematics Acquired . | . . . . . . . . . . . Robots Built . | . . . . . . . . . . . Authchips . | . . . . . . . . . . . Time . | . . . . . . . . . . . Total Robot Build Rating . | . . . . . . . . . . . Part Schematics Acquired 2 | . . . 1 . . . . 1 . . Parts Built . | . . . . . . . . . . . Authchips . | . . . . . . . . . . . Time . | . . . . . . . . . . . Total Part Build Rating . | . . . . . . . . . . . Parts Repaired . | . . . . . . . . . . . Time . | . . . . . . . . . . . Parts Recycled . | . . . . . . . . . . . Recycled Matter . | . . . . . . . . . . . Retrieved Matter . | . . . . . . . . . . . Retrieved Components . | . . . . . . . . . . . Parts Scanalyzed 2 | . . . 1 . . . . 1 . . Part Schematics Acquired 2 | . . . 1 . . . . 1 . . Parts Damaged . | . . . . . . . . . . . Bothacking | -11 -10 -10 -9 -8 -8 -7 -7 -6 -6 -6 ------------ Run | Jun Mat Min Mat Mat Sto Fac DSF Fac Gar Fac Used RIF Installer . | . . . . . . . . . . . Robots Hacked 7 | . . . . . 2 5 . . . . Non-combat 6 | . . . . . 2 4 . . . . Combat 1 | . . . . . . 1 . . . . Robot Hacks Applied 10 | . . . . . 3 7 . . . . parse_system 1 | . . . . . . 1 . . . . no_distress 5 | . . . . . 2 3 . . . . find_chute 2 | . . . . . . 2 . . . . find_recycling 1 | . . . . . 1 . . . . . find_station 1 | . . . . . . 1 . . . . Relay Couplers Released . | . . . . . . . . . . . Fabnet Peak Effective % . | . . . . . . . . . . . Robots Rewired 1 | . . . . . 1 . . . . . Allies Hacked . | . . . . . . . . . . . Hacks Repelled . | . . . . . . . . . . . Allies | -11 -10 -10 -9 -8 -8 -7 -7 -6 -6 -6 -------- Run | Jun Mat Min Mat Mat Sto Fac DSF Fac Gar Fac Total Allies 10 | . . . . . 10 . . . . . Largest Group 10 | . . . . . 10 6 6 . . . Highest-Rated Group 173 | . . . . . 173 109 109 . . . Highest-Rated Ally 29 | . . . . . 29 29 29 . . . Total Orders 1 | . . . . . 1 . . . . . GUARD 1 | . . . . . 1 . . . . . Ally Attacks 108 | . . . . . 70 1 37 . . . Total Damage 1409 | . . . . . 916 . 493 . . . Kills 14 | . . . . . 11 . 3 . . . Allies Corrupted . | . . . . . . . . . . . Allies Melted . | . . . . . . . . . . . Intel | -11 -10 -10 -9 -8 -8 -7 -7 -6 -6 -6 ------- Run | Jun Mat Min Mat Mat Sto Fac DSF Fac Gar Fac Robot Analysis Total . | . . . . . . . . . . . Derelict Logs Recovered . | . . . . . . . . . . . Drone Launches . | . . . . . . . . . . . Drone Recoveries . | . . . . . . . . . . . Exploration | -11 -10 -10 -9 -8 -8 -7 -7 -6 -6 -6 ------------- Run | Jun Mat Min Mat Mat Sto Fac DSF Fac Gar Fac Turns Passed 2259 | 58 225 170 223 122 281 334 134 225 282 205 Spaces Moved 2377 | 40 150 169 316 176 357 481 99 165 188 236 Core 160 | 8 3 . . . . . . . 91 58 Treads . | . . . . . . . . . . . Legs 609 | 32 85 . . . . 131 99 165 97 . Wheels . | . . . . . . . . . . . Hover 972 | . 62 169 316 176 71 . . . . 178 Flight 636 | . . . . . 286 350 . . . . Fastest Speed 29 | 50 56 56 52 52 29 29 130 130 50 50 Average Speed 69 | 111 95 97 52 52 34 56 130 130 91 59 Slowest Speed 200 | 120 200 116 52 52 175 130 130 130 130 110 Overloaded Moves . | . . . . . . . . . . . Propulsion Burnouts . | . . . . . . . . . . . Robots Hopped 2 | . . . . . 2 . . . . . Cave-ins Triggered . | . . . . . . . . . . . Exploration Rate (%) 25 | 3 23 32 28 10 48 8 80 3 38 4 Regions Visited 10 Branch Regions 2 Pre-discovered Areas . | . . . . . . . . . . . Known Exits Taken 4 | . . . . 1 1 1 . 1 . . Unknown Exits Taken 4 | 1 1 1 1 . . . . . . . Scrap Searched . | . . . . . . . . . . . Spaces Dug . | . . . . . . . . . . . Terrain Destroyed 4 | . . . . . . . . . . 4 Melee . | . . . . . . . . . . . Projectile 4 | . . . . . . . . . . 4 AOE . | . . . . . . . . . . . Terrain Rammed . | . . . . . . . . . . . Walls Destroyed . | . . . . . . . . . . . Machines Disabled . | . . . . . . . . . . . Actions | -11 -10 -10 -9 -8 -8 -7 -7 -6 -6 -6 --------- Run | Jun Mat Min Mat Mat Sto Fac DSF Fac Gar Fac Total 2845 | 50 197 175 354 204 501 539 105 174 267 279 Wait 188 | 2 . 1 13 25 103 13 . . 25 6 Move 2363 | 39 149 168 315 175 352 480 98 164 187 236 Hop 2 | . . . . . 2 . . . . . Pick Up 35 | 3 10 1 4 . 6 4 1 2 1 3 Fast Attach 35 | 6 5 2 1 . 3 4 2 4 1 7 Attach 15 | . 3 . 1 2 . 3 . 2 1 3 Detach 5 | . 1 . . . 1 1 . 1 . 1 Swap 13 | . . . 3 1 5 1 1 . 1 1 Drop 40 | . 9 3 5 . 10 7 3 1 1 1 Fire 92 | . 20 . 12 1 13 . . . 28 18 Melee 14 | . . . . . 6 7 . . . 1 Ram 10 | . . . . . . . . . 8 2 Kick 7 | . . . . . . 1 . . 6 . Crush . | . . . . . . . . . . . Escape Stasis 18 | . . . . . . 18 . . . . Rewire 8 | . . . . . . . . . 8 . Trap . | . . . . . . . . . . . Miscellaneous . | . . . . . . . . . . . Route ------- -11/Junkyard -10/Materials -10/Mines -9/Materials -8/Materials -8/Storage -7/Factory -7/DSF -6/Factory -6/Garrison -6/Factory History --------- Turn | Location | Event 6 | -11/Junkyard | Discovered new exit (range 16) 59 | -11/Junkyard | Entered Materials 275 | -10/Materials | Discovered new exit (range 13) 284 | -10/Materials | Entered Mines 302 | -10/Mines | Met a Derelict bent on vengeance 314 | -10/Mines | Met a Derelict shopkeep closing up shop 347 | -10/Mines | Build established: Mutant 393 | -10/Mines | Discovered new exit (range 11) 454 | -10/Mines | Entered Materials 454 | -9/Materials | Evolved 2 slots: Propulsion x1, Utility x1 639 | -9/Materials | Discovered new exit (range 16) 677 | -9/Materials | Entered another Materials area 677 | -8/Materials | Evolved 2 slots: Utility x2 797 | -8/Materials | Discovered new exit (range 4) 798 | -8/Materials | Identified exit to Storage 799 | -8/Materials | Entered Storage 887 | -8/Storage | Assisted by bots powering up and referring to "LRC-V3" 1045 | -8/Storage | Discovered new exit (range 10) 1054 | -8/Storage | Identified exit to Factory 1080 | -8/Storage | Entered Factory 1080 | -7/Factory | Accompanied by 6 allies 1080 | -7/Factory | Evolved 2 slots: Power x1, Utility x1 1147 | -7/Factory | Build established: Commander-Sprinter 1156 | -7/Factory | Identified exit to DSF 1414 | -7/Factory | Entered DSF 1414 | -7/DSF | Accompanied by 6 allies 1483 | -7/DSF | Additional patrols routed to DSF 1508 | -7/DSF | Discovered new exit (range 15) 1547 | -7/DSF | Identified exit to Factory 1548 | -7/DSF | Entered Factory 1548 | -6/Factory | Evolved 2 slots: Propulsion x1, Utility x1 1771 | -6/Factory | Identified exit to Garrison 1773 | -6/Factory | Entered Garrison 1788 | -6/Garrison | Build established: Mutant 1978 | -6/Garrison | Triggered checkpoint 2014 | -6/Garrison | Triggered checkpoint 2024 | -6/Garrison | Lost 10 parts (2p4n2u2w) 2039 | -6/Garrison | Core integrity fell below 50% 2045 | -6/Garrison | Phase Generator disabled 2045 | -6/Garrison | Discovered new exit (range 13) 2055 | -6/Garrison | Entered Factory 2165 | -6/Factory | Core integrity fell below 20% 2260 | -6/Factory | Destroyed by Y-54 Guardian with Flak Gun Last Messages --------------- local area. 02190_ U-05 Engineer builds a Wall. 02191_ Destroyed Lgt. Nuclear Core. 02193_ Acquired 21 matter. 02193_ Slammed into S-27 Virus. 02199_ S-27 Virus destroyed. 02201_ Destroyed Welding Torch. 02203_ Acquired 27 matter. 02204_ M-13 Machinist destroyed. 02207_ Acquired Recalibrator. 02212_ Acquired Lyr. Light Armor Plating. 02214_ Dropped Recalibrator. 02216_ Acquired Armor Integrity Analyzer. 02219_ Acquired Hvy. Mace. 02228_ Acquired 22 matter. 02229_ Acquired 3 matter. 02231_ Acquired 15 matter. 02238_ G:G,GGR2QJJ&83 /HP:XU8UK72W O|PHE7X 02244_ W-25 Informer sends out distress signal. 02250_ Acquired Lgt. Angular Momentum Engine. Map ----- +----------------------------------------------------+ | #??????# #?????????????????????????? | | ############+#############+######+####????? | | """ % #????? | | """ ???? | | """ ???? | | ???? | | ???? | | ######## ##########+##### #######+##### ???? | | ??????# #??????????????# #????????????????? ????? | | ??????# #??????????????# #??????????????????????? | | ????? ??????????????# #??????????????????????? | | [????? ??????????????# #??????????????????????? | | ???? T ?????????????# #??????????????????????? | | ??? ?????????????# #??????????????????????? | | ?? #????????????# #??????????????????????? | | ??# ##????????????# #??????????????????????? | | #?# ? #?????????????#w#??????????????????????? | | #####?# ##### #### """" #???????????? | | ??????# / #???????????? | | ??????# #####g##########?????????????? | | ??????????????????????# g #???????????????????? | | ??????????????????????# ** #???????????????????? | | ??????????????????????# ** #???????????????????? | | ??????????????????????# ** #???????????????????? | | ??????????????????????# /#???????????????????? | | ??????????????????????# @ #???????????????????? | | ??????????????????????###Y####???????????????????? | | ????????????????????????###??????????????????????? | | ?????????????????????????????????????????????????? | | ?????????????????????????????????????????????????? | | ?????????????????????????????????????????????????? | | ?????????????????????????????????????????????????? | | ?????????????????????????????????????????????????? | | ?????????????????????????????????????????????????? | | ?????????????????????????????????????????????????? | | ?????????????????????????????????????????????????? | | ?????????????????????????????????????????????????? | | ?????????????????????????????????????????????????? | | ?????????????????????????????????????????????????? | | ?????????????????????????????????????????????????? | | ?????????????????????????????????????????????????? | | ?????????????????????????????????????????????????? | | ?????????????????????????????????????????????????? | | ?????????????????????????????????????????????????? | | ?????????????????????????????????????????????????? | | ?????????????????????????????????????????????????? | | ?????????????????????????????????????????????????? | | ?????????????????????????????????????????????????? | | ?????????????????????????????????????????????????? | | ?????????????????????????????????????????????????? | +----------------------------------------------------+ Best States ------------- Heat Dissipation 37 Energy Generation 27 Energy Capacity 250 Matter Stores 300 Matter Capacity 300 Sight Range 20 Robot Scan Range 15 Terrain Scan Density 110 Additional Mass Support 9 Armor Coverage 150 Propulsion Shielding 66 Evasion (%) 64 Targeting Accuracy 16 Armor Integrity Analysis 30 Offensive Hacking 10 Authchip Count 1 Item Schematics ----------------- Hacking Suite | -9/Materials | Scanalyzed Airjet | -6/Factory | Scanalyzed Robot Schematics ------------------ None Fabricated ------------ Nothing Alien Tech Used ----------------- None Achievements -------------- A New Friend Challenges ------------ None Game ------ Seed AssemblyNeutronDetonator Manual? 0 Play Time 00:59:01 Cumulative 23.2 hours Start 2023.11.01 @ 21:46:59 End 2023.11.01 @ 23:20:19 Sessions 3 Manual Loads 0 Difficulty Rogue Special Mode None Game No. 35 Rogue 35 Adventurer 0 Explorer 0 Win Type - Total 0 Types 0/0/0/0/0/0/0/0/0 Lore% 19 Gallery% 31 Achievement% 22 Wizard Run 0 Options --------- ASCII 0 Keyboard 1 Movement Numpad Keybinds 0 Fullscreen 1 Font 18/TerminusBold Map View 76x50 Tactical HUD 1 Map Filters NONE Filters NONE Steam 1 RUN: 8d0a51cd-9c70-4597-b175-f40e5e5652d1